Cogmind - Beta 16.1 @@@ ROGUE MODE // 2026.03.22 @ 12:57:07 // AFD2018/Launchers Player: Minty Result: Destroyed by Y-45 Defender with Beam Rifle Performance ------------- Evolutions (2) 1000 Regions Visited (3) 600 Robots Destroyed (40) 200 Value Destroyed (1157) 1157 Prototype IDs (1) 20 Alien Tech Used (0) 0 Bonus (17) 17 TOTAL SCORE: 2994 Bonus ------- High Alert Combat Kills 17 Cogmind --------- Core Integrity 0/550 Matter 31/300 Energy 55/100 System Corruption 1% Temperature Cool (9) Movement Core (50) Location -8/Materials Parts ------- > --- POWER (1) -------- (None) > --- PROPULSION (3) --- (None) > --- UTILITY (5) ------ (None) > --- WEAPON (2) ------- (None) > --- INVENTORY (5) ---- Shock Bomb Launcher Advanced EMP Blaster Grenade Launcher Rocket Launcher Improved Grenade Launcher Peak State ------------ > --- POWER ------------ Reinforced Ion Engine > --- PROPULSION ------- Compact Wheel > --- UTILITY ---------- Small Storage Unit Seismic Detector > --- WEAPON ----------- Shock Bomb Launcher > --- INVENTORY -------- Hover Unit Grenade Launcher Grenade Launcher Grenade Launcher Rocket Launcher Mini Grenade Launcher Mini Grenade Launcher [Rating: 9] Favorites ----------- Power Reinforced Ion Engine Engine Reinforced Ion Engine Propulsion Compact Wheel Wheel Compact Wheel Hover Unit Backup Propulsion I Utility Small Storage Unit Device Seismic Detector Storage Small Storage Unit Protection Core Shielding Weapon Grenade Launcher Launcher Grenade Launcher Build | -11 -10 -9 -8 ------- Run | Yrd Mat Mat Mat Slots Evolved 4 | . . 2 2 Power . | . . . . Propulsion 1 | . . . 1 Utility 3 | . . 2 1 Weapon . | . . . . Parts Attached 17 | . 5 3 9 Power 3 | . 1 1 1 Engine 3 | . 1 1 1 Core . | . . . . Reactor . | . . . . Propulsion 4 | . 2 . 2 Treads . | . . . . Leg . | . . . . Wheel 2 | . 2 . . Hover 2 | . . . 2 Flight . | . . . . Utility 3 | . 2 . 1 Device 1 | . 1 . . Storage 1 | . 1 . . Processor . | . . . . Hackware . | . . . . Protection 1 | . . . 1 Artifact . | . . . . Weapon 7 | . . 2 5 Energy Gun . | . . . . Energy Cannon . | . . . . Ballistic Gun . | . . . . Ballistic Cannon . | . . . . Launcher 7 | . . 2 5 Special Weapon . | . . . . Impact Weapon . | . . . . Slashing Weapon . | . . . . Piercing Weapon . | . . . . Special Melee Weapon . | . . . . Unidentified Prototypes 1 | . . . 1 Parts Lost 15 | . 2 2 11 Power 3 | . 1 . 2 Propulsion 6 | . 1 . 5 Utility 3 | . . . 3 Weapon 3 | . . 2 1 Highest Loss Streak 7 | . 2 1 7 To Critical Strikes . | . . . . Average Backups 5 | . 5 5 6 Power . | . . . . Propulsion . | . . . . Utility . | . . . . Weapon 5 | . 5 5 5 Tool/Special . | . . . . Unused Backups 9 | . 2 2 5 Power . | . . . . Propulsion . | . . . . Utility . | . . . . Weapon 9 | . 2 2 5 Tool/Special . | . . . . Average Slot Usage (%) 45 | . 51 50 32 Engine 2 | . . 1 4 Wheel 8 | . 10 11 3 Hover 2 | . . . 6 Device 5 | . 1 11 2 Storage 8 | . 9 11 4 Protection 1 | . . . 5 Launcher 16 | . 28 15 5 Peak Build Rating 9 | . 5 6 9 Average Rating 4 | . 3 5 5 On Entrance 3 | 2 2 5 5 Avg Prop Armor Cover (%) 18 | . . . 18 Naked Turns 10 | . . . 10 Heaviest Build 22 | 6 12 16 22 Greatest Support 18 | 3 16 16 18 Greatest Overweight (x) 4 | 1 3 . 4 Average Overweight (x) . | 1 . . . Largest Inventory Capacity 8 | . 8 8 8 Average Capacity 7 | . 7 8 6 Most Carried 8 | . 5 7 8 Average Carried 5 | . 5 5 6 Final Capacity 8 | 5 8 8 5 Final Carried 6 | 5 5 6 5 Class Distribution -------------------- 100% | Mutant Dominant Class ---------------- Mutant | -10/Materials Mutant | -9/Materials Mutant | -8/Materials Resources | -11 -10 -9 -8 ----------- Run | Yrd Mat Mat Mat Matter Collected 539 | . 174 118 247 Remotely . | . . . . Salvage Created 866 | . 256 246 364 Parts 34 | . 16 7 11 Haulers Intercepted . | . . . . Recyclers Shooed 1 | . . . 1 Parts Field Recycled . | . . . . Retrieved Matter . | . . . . Parts Self-Destructed . | . . . . Prevented . | . . . . Parts Restored . | . . . . Kills | -11 -10 -9 -8 ------- Run | Yrd Mat Mat Mat Combat Hostiles Destroyed 29 | . 5 12 12 AOE 28 | . 5 12 11 Classes Destroyed 11 | . 6 3 2 Worker 1 | . . 1 . Builder 2 | . 2 . . Tunneler 1 | . 1 . . Recycler 2 | . 2 . . Watcher 5 | . 1 2 2 Swarmer 9 | . 3 3 3 Grunt 13 | . 2 6 5 Brawler 2 | . . 2 . Duelist 1 | . . . 1 Sentry 2 | . . 1 1 Hunter 2 | . . . 2 Best Kill Streak 8 | . 8 5 4 Combat Bots Only 4 | . 3 4 4 Max Kills in Single Turn 5 | . 3 5 3 Gunslinging . | . . . . Exploded 4 | . 3 4 3 Melee . | . . . . Uniques/NPCs Destroyed . | . . . . Combat | -11 -10 -9 -8 -------- Run | Yrd Mat Mat Mat Hostile Shots Fired 129 | . 9 29 91 Missed 41 | . 4 9 28 Hits 88 | . 5 20 63 Melee 3 | . . . 3 Projectile 85 | . 5 20 60 Critical Strikes 5 | . 1 . 4 Actively Blocked 1 | . . . 1 Damage Taken 1533 | . 170 271 1092 Core 736 | . 79 101 556 Absorbed by Shields . | . . . . Redirected to Shielding 32 | . . . 32 Core Remaining (%) 80 | 100 68 74 . Volleys Fired 49 | . 11 13 25 Largest 2 | . 2 2 2 Hottest 60 | . 60 60 60 Shots Fired 58 | . 16 15 27 Gun . | . . . . Cannon . | . . . . Launcher 58 | . 16 15 27 Special . | . . . . Kinetic . | . . . . Thermal . | . . . . Explosive 50 | . 16 15 19 Electromagnetic 8 | . . . 8 Robot Hit Streak 10 | . 3 5 10 Robot Miss Streak 2 | . 2 2 2 Penetration Max . | . . . . Secondary Targets . | . . . . Shots Hit Robots 36 | . 7 10 19 Core Hits 66 | . 15 18 33 Critical Kills . | . . . . Critical Parts Destroyed . | . . . . Critical Strikes . | . . . . Melee Attacks . | . . . . Impact . | . . . . Slashing . | . . . . Piercing . | . . . . Sneak Attacks . | . . . . Combat Hostiles . | . . . . Follow-up Attacks . | . . . . Damage Inflicted 3265 | . 577 1279 1409 Guns . | . . . . Cannons . | . . . . Explosions 3263 | . 577 1279 1407 Melee . | . . . . Ramming 2 | . . . 2 Kinetic . | . . . . Thermal . | . . . . Explosive 2862 | . 577 1279 1006 Electromagnetic 401 | . . . 401 Impact . | . . . . Slashing . | . . . . Piercing . | . . . . Highest Corruption 1 | . . . 1 Average Corruption 1 | . . . 1 Corruption Purged . | . . . . Corruption Blocked . | . . . . Effects 1 | . . . 1 Data Loss (minor) 1 | . . . 1 Overload Shots . | . . . . Overflow Damage 80 | . 3 65 12 Projectiles . | . . . . Explosions 80 | . 3 65 12 Melee . | . . . . Knockbacks . | . . . . Impact . | . . . . Kinetic . | . . . . Secondary . | . . . . Self-Inflicted Damage 271 | . 102 49 120 Shots 15 | . 5 3 7 Rammed 2 | . 1 . 1 Targets Rammed 2 | . 1 . 1 Kicked . | . . . . Crushed . | . . . . Highest Temperature 23 | . 22 . 23 Average Temperature 10 | . 12 . 9 Received Heat Transfer 501 | . 51 90 360 Siege Activations . | . . . . Martial Activations . | . . . . Shielding Activations . | . . . . Robots Disrupted . | . . . . Combat Hostiles . | . . . . Robots Corrupted 1 | . . . 1 Combat Hostiles 1 | . . . 1 Parts Fried 3 | . . . 3 Impact Corruptions . | . . . . Robots Melted . | . . . . Combat Hostiles . | . . . . Parts Melted . | . . . . Heat Transferred . | . . . . Parts Sabotaged . | . . . . Parts Stolen . | . . . . Parts Stripped . | . . . . Power Chain Reactions . | . . . . Alert | -11 -10 -9 -8 ------- Run | Yrd Mat Mat Mat Maximum Alert Level 2 | . . 1 2 Low Security (%) 76 | . 100 74 54 Level 1 21 | . . 25 38 Level 2 2 | . . . 7 Level 3 . | . . . . Level 4 . | . . . . Level 5 . | . . . . High Security . | . . . . Max Security . | . . . . Peak Influence 542 | . 84 307 542 Initial 117 | . . 22 117 Average 131 | . 40 144 211 Influence Increases 1348 | . 203 490 655 Destroy 0b10 Robot/C 580 | . 100 240 240 Destroy 0b10 Robot/NC 55 | . 30 15 10 Destroy Leader 130 | . 22 44 64 Trap Triggered on 0b10 40 | . . . 40 Successful Hack 6 | . . . 6 Disable Machine 150 | . . 90 60 Destroy Structure 222 | . 51 86 85 Lose Combat Pursuer 165 | . . 15 150 Influence Decreases 806 | . 149 267 390 Entered New Map 192 | . . 32 160 Time Decay 379 | . 129 130 120 Lost Part 150 | . 20 20 110 Purge Threat 85 | . . 85 . Squads Dispatched 7 | . . 2 5 Investigation 3 | . . 1 2 Extermination . | . . . . Reinforcement 4 | . . 1 3 Assault . | . . . . Garrison . | . . . . Intercept . | . . . . Searches Triggered . | . . . . Construction Impeded 1 | . . . 1 Haulers Reinforced . | . . . . Active Scanning Responses . | . . . . Cargo Convoy Interrupts . | . . . . Stealth | -11 -10 -9 -8 --------- Run | Yrd Mat Mat Mat Distress Signals 7 | . 1 2 4 Communications Jammed . | . . . . Distress Signals . | . . . . Times Spotted 61 | . 7 20 34 Peak Tracking Total 23 | . 4 6 23 Tactical Retreats 5 | . . 1 4 Traps | -11 -10 -9 -8 ------- Run | Yrd Mat Mat Mat Traps Triggered 7 | . . 1 6 Indirectly 5 | . . . 5 Trap Hack Attempts . | . . . . Triggered . | . . . . Disarmed . | . . . . Reprogrammed 6 | . . . 6 Reused 4 | . . . 4 Traps Extracted . | . . . . Installed . | . . . . Triggered 4 | . . . 4 Objects Rigged 3 | . . 3 . Exploded 2 | . . 2 . Machines | -11 -10 -9 -8 ---------- Run | Yrd Mat Mat Mat Machines Disabled 10 | . . 6 4 Max in Single Turn 2 | . . 2 1 Machines Repaired . | . . . . Machines Dismantled . | . . . . Machines Sabotaged . | . . . . Overloaded Fab Kills . | . . . . Hacking | -11 -10 -9 -8 --------- Run | Yrd Mat Mat Mat Machines Accessed 7 | . . 4 3 Terminals 5 | . . 3 2 Fabricators . | . . . . Repair Stations 1 | . . . 1 Recycling Units 1 | . . 1 . Scanalyzers . | . . . . Garrison Access . | . . . . Total Hacks 21 | . . 14 7 Successful 11 | . . 8 3 Failed 10 | . . 6 4 Catastrophic 2 | . . 1 1 Database Lockouts . | . . . . Manual 8 | . . 5 3 Terminals 13 | . . 7 6 Fabricators . | . . . . Repair Stations 1 | . . . 1 Recycling Units 7 | . . 7 . Scanalyzers . | . . . . Garrison Access . | . . . . Terminal Hacks 2 | . . 1 1 Unreport Threat 1 | . . 1 . Reprogram Traps 1 | . . . 1 Fabricator Hacks . | . . . . Repair Station Hacks 1 | . . . 1 Refit 1 | . . . 1 Recycling Unit Hacks 6 | . . 6 . Recycle Component 1 | . . 1 . Process 3 | . . 3 . Retrieve Matter 2 | . . 2 . Scanalyzer . | . . . . Garrison Access Hacks . | . . . . Unauthorized Hacks 2 | . . 1 1 Terminals 2 | . . 1 1 Detonate 1 | . . 1 . Disrupt 1 | . . . 1 Fabricators . | . . . . Repair Stations . | . . . . Recycling Units . | . . . . Scanalyzers . | . . . . Garrison Access . | . . . . Data Cores Recovered . | . . . . Used . | . . . . Hacking Detections 6 | . . 4 2 Full Trace Events 4 | . . 2 2 Feedback Events . | . . . . Feedback Blocked . | . . . . Robot Schematics Acquired . | . . . . Robots Built . | . . . . Authchips . | . . . . Time . | . . . . Total Robot Build Rating . | . . . . Part Schematics Acquired . | . . . . Parts Built . | . . . . Authchips . | . . . . Time . | . . . . Total Part Build Rating . | . . . . Part Studies Acquired . | . . . . Parts Repaired . | . . . . Time . | . . . . Parts Recycled 1 | . . 1 . Recycled Matter 49 | . . 49 . Retrieved Matter 49 | . . 49 . Retrieved Components . | . . . . Parts Scanalyzed . | . . . . Part Schematics Acquired . | . . . . Parts Damaged . | . . . . Bothacking | -11 -10 -9 -8 ------------ Run | Yrd Mat Mat Mat Used RIF Installer . | . . . . Robots Hacked . | . . . . Non-combat . | . . . . Combat . | . . . . Robot Hacks Applied . | . . . . Relay Couplers Released . | . . . . Fabnet Peak Effective % . | . . . . Robots Rewired . | . . . . Allies Hacked . | . . . . Hacks Repelled . | . . . . Allies | -11 -10 -9 -8 -------- Run | Yrd Mat Mat Mat Total Allies . | . . . . Largest Group . | . . . . Highest-Rated Group . | . . . . Highest-Rated Ally . | . . . . Total Orders . | . . . . Ally Attacks . | . . . . Total Damage . | . . . . Kills . | . . . . Allies Corrupted . | . . . . Allies Melted . | . . . . Intel | -11 -10 -9 -8 ------- Run | Yrd Mat Mat Mat Active Infowar (turns) 365 | . 27 270 68 Seismic 365 | . 27 270 68 Robot Analysis Total . | . . . . Derelict Logs Recovered . | . . . . Drone Launches . | . . . . Drone Recoveries . | . . . . Exploration | -11 -10 -9 -8 ------------- Run | Yrd Mat Mat Mat Turns Passed 778 | . 260 270 248 Spaces Moved 633 | 1 173 228 231 Core 191 | 1 49 . 141 Treads . | . . . . Legs . | . . . . Wheels 415 | . 124 228 63 Hover 27 | . . . 27 Flight . | . . . . Fastest Speed 50 | 100 80 100 50 Average Speed 90 | 100 100 100 74 Slowest Speed 250 | 100 200 100 250 Overloaded Moves . | . . . . Propulsion Burnouts . | . . . . Robots Hopped . | . . . . Potential Cave-ins . | . . . . Cave-ins Triggered . | . . . . Exploration Rate (%) 25 | 1 41 31 29 Regions Visited 3 Branch Regions . Pre-discovered Areas . | . . . . Known Exits Taken . | . . . . Unknown Exits Taken 3 | 1 1 1 . Scrap Searched . | . . . . Spaces Dug . | . . . . Terrain Destroyed 244 | . 70 80 94 Melee . | . . . . Projectile . | . . . . AOE 244 | . 70 80 94 Terrain Rammed . | . . . . Walls Destroyed . | . . . . Machines Disabled . | . . . . Actions | -11 -10 -9 -8 --------- Run | Yrd Mat Mat Mat Total 781 | . 240 254 287 Wait 63 | . 51 9 3 Move 630 | . 172 227 231 Hop . | . . . . Pick Up 6 | . . 1 5 Fast Attach 10 | . 5 3 2 Attach 6 | . . . 6 Detach 4 | . . 1 3 Swap 4 | . . . 4 Drop 7 | . . . 7 Fire 49 | . 11 13 25 Melee . | . . . . Ram 2 | . 1 . 1 Kick . | . . . . Crush . | . . . . Escape Stasis . | . . . . Rewire . | . . . . Trap . | . . . . Miscellaneous . | . . . . Route ------- -11/Scrapyard -10/Materials -9/Materials -8/Materials History --------- Turn | Location | Event 1 | -11/Scrapyard | Discovered new exit (range 0) 1 | -11/Scrapyard | Entered Materials 246 | -10/Materials | Discovered new exit (range 15) 261 | -10/Materials | Entered another Materials area 261 | -9/Materials | Evolved 2 slots: Utility x2 312 | -9/Materials | Build established: Mutant 522 | -9/Materials | Discovered new exit (range 10) 531 | -9/Materials | Entered another Materials area 531 | -8/Materials | Evolved 2 slots: Propulsion x1, Utility x1 648 | -8/Materials | Lost 3 parts (1p1n1u) 679 | -8/Materials | Core integrity fell below 50% 743 | -8/Materials | Core integrity fell below 20% 779 | -8/Materials | Destroyed by Y-45 Defender with Beam Rifle Last Messages --------------- 00764_ Core Shielding destroyed. 00766_ Backup Propulsion I destroyed. 00766_ S-10 Pest triggered Shock Trap. 00766_ The floor emits a surge of raw power. 00767_ S-10 Pest triggered Shock Trap. 00767_ The floor emits a surge of raw power. 00768_ S-10 Pest triggered Shock Trap. 00768_ The floor emits a surge of raw power. 00769_ S-10 Pest system terminally corrupted. 00769_ S-10 Pest destroyed. 00769_ Flight Unit fried. 00769_ S-10 Pest destroyed. 00769_ Flight Unit fried. 00769_ S-10 Pest destroyed. 00769_ Shock Trap short circuited. 00769_ The floor emits a surge of raw power. 00769_ ALERT: Hostiles spotted, dispatching reinforcements to Terminal M003. 00772_ Critical hit (Burn: +37). 00777_ System corrupted: Component data lost. Map ----- +----------------------------------------------------+ | ???????????????? ?????????????? ?????????? | | ???????????????? ?????????????? ?????????? | | ????????????????? ??????????????# #?????????? | | ????????????????? ??????????????# #?????????? | | ?????????????????# ??????????????# #?????????? | | ?????????????????# ########??????# #?????????? | | ?????????????????# #]]]]]]#??????# #?????????? | | ?????????????????# #]]]] ]#??????# #?????????? | | ?????????????????# # ] #?????## ##????????? | | ?????????????????+ # ####### #????????? | | ?????????????????# #????????? | | ?????????????????# T +????????? | | ?????????????????# #????????? | | ?????????????????#^ %############## #????????? | | ?????????????????# % #????????????## ##????????? | | ?????????????????# #?????????????# #?????????? | | ?????????????????# =%#?????????????# #?????????? | | ?????????????????# *=###########???# #?????????? | | ?????????????????# %## """ #???# #?????????? | | ????????????????## g## "T" ] ##### #????###### | | ????????????????# # t + #???# | | ????????????????# ] # ] g####### #??? | | ????????????????+ Y ] r #?????# #### | | ????????????????# # """ ###???# ## | | ????????????????# #] """ g#] ???# # " % | | ????????????????### ### @""" # ?? # | | ??????????????????# ??# ] # "?? # * | | ??????????????????# ??########## ""? # "" ] # | | ??????????????????# ???????????# """ # ! T#? | | ??????????????????# ???????????# # * #? | | ??????????????????# ???????????# """ ] ]##? | | ??????????????????# ???????????# """ # #?? | | ??????????????????? ???????????# """ ##?? | | ????????????????????????????#### # # ##?? | | ????????????????????######### # ] # ""?? | | ????????????????????# # # """? | | ????????????????????# """ ###+### ""? | | ????????????????????# """ " = # """? | | ????????????????????# """ + """? | | ????????????????????# """ # # ? | | ????????????????????# # ### # ?? | | ????????????????????# # # ?? | | ????????????????????# ]] ]# #######?? | | ????????????????????####### # #???????? | | ??????????????????????????###### """ # #???????? | | ???????????????????????????????# """ # #???????? | | ???????????????????????????????# """ #! #???????? | | ???????????????????????????????# # #???????? | | ???????????????????????????????# """ # #???????? | | ???????????????????????????????# """ # #???????? | +----------------------------------------------------+ Best States ------------- Heat Dissipation 31 Energy Generation 12 Energy Capacity 265 Matter Stores 131 Matter Capacity 300 Sight Range 16 Terrain Scan Density 10 Armor Coverage 80 Core Shielding 20 Evasion (%) 50 Item Schematics ----------------- None Robot Schematics ------------------ None Fabricated ------------ Nothing Repaired ---------- Nothing Studied --------- None Alien Tech Used ----------------- None Achievements -------------- None Challenges ------------ None Game ------ Seed DisposableMetamassBank Manual? 0 Play Time 00:09:57 Cumulative 1280.5 hours Start 2026.03.21 @ 22:35:43 End 2026.03.22 @ 12:57:07 Sessions 3 Manual Loads 0 Difficulty Rogue Special Mode AFD2018/Launchers Game No. 1571 Rogue 1287 Adventurer 124 Explorer 160 Win Type - Total 63 Types 49/0/8/4/1/0/0/1/0/0 Lore% 93 Gallery% 83 Achievement% 69 Wizard Run 0 Options --------- Layout 0 ASCII 0 Keyboard 1 Movement Numpad Keybinds 0 Fullscreen 2 Font 18/X11 Map View 76x50 Zoom Use 0% Tactical HUD 1 Map Filters NONE Filters NONE Steam 1 RUN: 3b4985aa-a351-4255-9ec8-34a0d91277c8